Cogmind - Beta 9.1 @@@ ROGUE MODE // 2019.10.30 @ 18:29:11 // Halloween2019/Abominations Player: Valguris Result: Destroyed by Lesser Abomination with Light Assault Rifle Performance ------------- Evolutions (0) 0 Regions Visited (1) 200 Robots Destroyed (3) 15 Value Destroyed (66) 66 Prototype IDs (0) 0 Alien Tech Used (0) 0 Bonus (0) 0 TOTAL SCORE: 281 Bonus ------- None Cogmind --------- Core Integrity 0/250 Matter 233/300 Energy 212/250 System Corruption 4% Temperature Cool (413) Location -10/Materials Parts ------- Power (1) Ion Engine Propulsion (2) Light Treads Light Treads Utility (2) Large Storage Unit Weapon (2) Light Cannon Light Cannon Inventory (10) Light Deuterium Engine Aluminum Leg Aluminum Leg Combat Airjet Large Storage Unit Light Cannon Light Cannon Light Cannon Light Cannon Light Cannon Peak State ------------ Power Ion Engine Propulsion Light Treads Light Treads Utility Large Storage Unit Sensor Array Weapon Assault Rifle Light Cannon Inventory Light Deuterium Engine Aluminum Leg Aluminum Leg Hover Unit Combat Airjet Small Storage Unit Small Storage Unit Large Storage Unit Structural Scanner [Rating: 8] Favorites ----------- Power Ion Engine Engine Ion Engine Propulsion Light Treads Treads Light Treads Leg Aluminum Leg Wheel Wheel Utility Small Storage Unit Device Sensor Array Storage Small Storage Unit Weapon Assault Rifle Ballistic Gun Assault Rifle Ballistic Cannon Light Cannon Build | -11 -10 ------- Run | Scr Mat Slots Evolved . | . . Power . | . . Propulsion . | . . Utility . | . . Weapon . | . . Parts Attached 19 | 11 8 Power 2 | 1 1 Engine 2 | 1 1 Core . | . . Reactor . | . . Propulsion 7 | 6 1 Treads 4 | 3 1 Leg 1 | 1 . Wheel 2 | 2 . Hover . | . . Flight . | . . Utility 5 | 2 3 Device 2 | . 2 Storage 3 | 2 1 Processor . | . . Hackware . | . . Protection . | . . Artifact . | . . Weapon 5 | 2 3 Energy Gun . | . . Energy Cannon . | . . Ballistic Gun 3 | 2 1 Ballistic Cannon 2 | . 2 Launcher . | . . Special Weapon . | . . Impact Weapon . | . . Slashing Weapon . | . . Piercing Weapon . | . . Special Melee Weapon . | . . Unidentified Prototypes . | . . Parts Lost 6 | 5 1 Power 1 | 1 . Propulsion 2 | 2 . Utility 1 | . 1 Weapon 2 | 2 . Highest Loss Streak 4 | 4 1 Average Slot Usage (%) 91 | . 91 Engine 14 | . 14 Treads 28 | . 28 Device 9 | . 9 Storage 16 | . 16 Ballistic Gun 5 | . 5 Ballistic Cannon 15 | . 15 Naked Turns . | . . Heaviest Build 28 | 17 28 Greatest Support 40 | 40 40 Greatest Overweight (x) . | . . Average Overweight (x) . | . . Largest Inventory Capacity 12 | 8 12 Average Capacity 6 | 6 9 Most Carried 10 | 7 10 Average Carried 6 | 5 8 Final Capacity 10 | 8 10 Final Carried 10 | 6 10 Class Distribution -------------------- 100% | Mutant Dominant Class ---------------- Mutant | -10/Materials Resources | -11 -10 ----------- Run | Scr Mat Matter Collected 415 | 282 133 Remotely . | . . Salvage Created 146 | 89 57 Parts 3 | 1 2 Haulers Intercepted . | . . Recyclers Shooed . | . . Parts Field Recycled . | . . Retrieved Matter . | . . Parts Self-Destructed . | . . Prevented . | . . Kills | -11 -10 ------- Run | Scr Mat Combat Hostiles Destroyed 2 | 1 1 Melee 1 | 1 . Cannons 1 | . 1 Classes Destroyed 3 | 2 1 Recycler 1 | 1 . Assembled 1 | 1 . Abomination 1 | . 1 Best Kill Streak 1 | 1 1 Combat Bots Only 1 | 1 1 Max Kills in Single Turn 1 | 1 1 Gunslinging . | . . Exploded . | . . Melee 1 | 1 . Uniques/NPCs Destroyed . | . . Combat | -11 -10 -------- Run | Scr Mat Damage Taken 1149 | 696 453 Core 251 | 154 97 Absorbed by Shields . | . . Core Remaining (%) 38 | 38 . Volleys Fired 16 | 2 14 Largest 2 | 2 2 Hottest 70 | 40 70 Shots Fired 32 | 4 28 Gun 4 | 4 . Cannon 28 | . 28 Launcher . | . . Special . | . . Kinetic 32 | 4 28 Thermal . | . . Explosive . | . . Electromagnetic . | . . Robot Hit Streak 4 | 2 4 Robot Miss Streak 3 | 1 3 Penetration Max . | . . Secondary Targets . | . . Shots Hit Robots 19 | 2 17 Core Hits 6 | 3 3 Critical Hits . | . . Critical Kills . | . . Critical Parts Destroyed . | . . Melee Attacks . | . . Impact . | . . Slashing . | . . Piercing . | . . Sneak Attacks . | . . Combat Hostiles . | . . Follow-up Attacks . | . . Damage Inflicted 313 | 44 269 Guns 29 | 29 . Cannons 269 | . 269 Explosions . | . . Melee . | . . Ramming 15 | 15 . Kinetic 298 | 29 269 Thermal . | . . Explosive . | . . Electromagnetic . | . . Impact . | . . Slashing . | . . Piercing . | . . Highest Corruption 4 | 4 4 Average Corruption 4 | 4 4 Corruption Purged . | . . Effects 8 | 2 6 Message Errors 2 | . 2 Matter Fused 2 | 2 . Heat Flow Errors 1 | . 1 Energy Discharges 2 | . 2 Targeting Errors 1 | . 1 Overload Shots . | . . Overflow Damage 1 | . 1 Projectiles 1 | . 1 Explosions . | . . Melee . | . . Knockbacks 2 | . 2 Impact . | . . Kinetic 2 | . 2 Secondary . | . . Self-Inflicted Damage 6 | 6 . Shots . | . . Rammed 5 | 5 . Targets Rammed 5 | 5 . Kicked . | . . Crushed . | . . Highest Temperature 555 | 20 555 Average Temperature 249 | 20 252 Received Heat Transfer 80 | 80 . Effects 10 | . 10 Shutdowns 2 | . 2 Energy Bleed 1 | . 1 Interference 1 | . 1 Matter Decay 2 | . 2 Damage (minor) 3 | . 3 Damage (core) 1 | . 1 Siege Activations . | . . Robots Corrupted . | . . Combat Hostiles . | . . Parts Fried . | . . Impact Corruptions . | . . Robots Melted . | . . Combat Hostiles . | . . Parts Melted . | . . Heat Transferred . | . . Parts Sabotaged . | . . Parts Stolen . | . . Parts Stripped . | . . Power Chain Reactions . | . . Missiles Intercepted . | . . Alert | -11 -10 ------- Run | Scr Mat Peak Influence 51 | 30 51 Average Influence 2 | . 25 Maximum Alert Level . | . . Low Security (%) 100 | . . Level 1 . | . . Level 2 . | . . Level 3 . | . . Level 4 . | . . Level 5 . | . . High Security . | . . Max Security . | . . Squads Dispatched 3 | . 3 Investigation 2 | . 2 Extermination . | . . Reinforcement 1 | . 1 Assault . | . . Garrison . | . . Intercept . | . . Construction Impeded . | . . Haulers Reinforced . | . . Stealth | -11 -10 --------- Run | Scr Mat Distress Signals 1 | . 1 Communications Jammed . | . . Distress Signals . | . . Times Spotted 31 | 27 4 Peak Tracking Total 20 | 20 3 Tactical Retreats 2 | 2 . Traps | -11 -10 ------- Run | Scr Mat Traps Triggered . | . . Indirectly . | . . Trap Hack Attempts . | . . Triggered . | . . Disarmed . | . . Reprogrammed . | . . Reused . | . . Traps Extracted . | . . Installed . | . . Triggered . | . . Machines | -11 -10 ---------- Run | Scr Mat Machines Disabled . | . . Max in Single Turn . | . . Machines Sabotaged . | . . Garrisons Compromised . | . . Overloaded Fab Kills . | . . Fab Network Shutdowns . | . . Hacking | -11 -10 --------- Run | Scr Mat Machines Accessed 2 | . 2 Terminals 1 | . 1 Fabricators . | . . Repair Stations . | . . Recycling Units 1 | . 1 Scanalyzers . | . . Garrison Access . | . . Total Hacks 10 | . 10 Successful 8 | . 8 Failed 2 | . 2 Catastrophic 1 | . 1 Database Lockouts . | . . Manual 7 | . 7 Terminals 7 | . 7 Fabricators . | . . Repair Stations . | . . Recycling Units 3 | . 3 Scanalyzers . | . . Garrison Access . | . . Terminal Hacks 4 | . 4 Robot Analysis 2 | . 2 Emergency Access Points 1 | . 1 Dispatch Records 1 | . 1 Fabricator Hacks . | . . Repair Station Hacks . | . . Recycling Unit Hacks 1 | . 1 Retrieve Components 1 | . 1 Scanalyzer . | . . Garrison Access Hacks . | . . Unauthorized Hacks 6 | . 6 Terminals 2 | . 2 Track 1 | . 1 Botnet 1 | . 1 Fabricators . | . . Repair Stations . | . . Recycling Units 1 | . 1 Tunnel 1 | . 1 Scanalyzers . | . . Garrison Access . | . . Data Cores Recovered . | . . Used . | . . Hacking Detections 1 | . 1 Full Trace Events . | . . Feedback Events . | . . Feedback Blocked . | . . Robot Schematics Acquired . | . . Robots Built . | . . Matter . | . . Time . | . . Total Robot Build Rating . | . . Part Schematics Acquired . | . . Parts Built . | . . Matter . | . . Time . | . . Total Part Build Rating . | . . Parts Repaired . | . . Time . | . . Parts Recycled . | . . Recycled Matter . | . . Retrieved Matter . | . . Retrieved Components . | . . Parts Scanalyzed . | . . Part Schematics Acquired . | . . Parts Damaged . | . . Bothacking | -11 -10 ------------ Run | Scr Mat Used RIF Installer . | . . Robots Hacked . | . . Non-combat . | . . Combat . | . . Robot Hacks Applied . | . . Relay Couplers Released . | . . Robots Rewired . | . . Allies Hacked . | . . Hacks Repelled . | . . Allies | -11 -10 -------- Run | Scr Mat Total Allies . | . . Largest Group . | . . Highest-Rated Group . | . . Highest-Rated Ally . | . . Total Orders . | . . Ally Attacks . | . . Total Damage . | . . Kills . | . . Allies Corrupted . | . . Allies Melted . | . . Intel | -11 -10 ------- Run | Scr Mat Robot Analysis Total 2 | . 2 Derelict Logs Recovered . | . . Drone Launches . | . . Drone Recoveries . | . . Exploration | -11 -10 ------------- Run | Scr Mat Turns Passed 2465 | 2267 198 Spaces Moved 1156 | 1073 83 Core 3 | 3 . Treads 978 | 895 83 Legs 16 | 16 . Wheels 159 | 159 . Hover . | . . Flight . | . . Fastest Speed 50 | 50 160 Average Speed 148 | 147 160 Slowest Speed 160 | 160 160 Overloaded Moves . | . . Propulsion Burnouts . | . . Robots Hopped . | . . Cave-ins Triggered . | . . Exploration Rate (%) 52 | 83 21 Regions Visited 1 Branch Regions . Pre-discovered Areas 1 | . 1 Known Exits Taken . | . . Unknown Exits Taken 1 | 1 . Scrap Searched . | . . Spaces Dug . | . . Terrain Destroyed . | . . Melee . | . . Projectile . | . . AOE . | . . Actions | -11 -10 --------- Run | Scr Mat Total 1871 | 1750 121 Wait 652 | 652 . Move 1155 | 1072 83 Hop . | . . Pick Up 16 | 8 8 Fast Attach 11 | 7 4 Attach 4 | 2 2 Detach 3 | . 3 Swap 4 | 2 2 Drop 5 | . 5 Fire 16 | 2 14 Melee . | . . Ram 3 | 3 . Kick . | . . Crush 2 | 2 . Escape Stasis . | . . Rewire . | . . Trap . | . . Miscellaneous . | . . Route ------- -11/Scrapyard -10/Materials History --------- Turn | Location | Event 11 | -11/Scrapyard | Discovered new exit (range 15) 2088 | -11/Scrapyard | Assembled infested the area 2162 | -11/Scrapyard | Lost 4 parts (1p1n2w) 2264 | -11/Scrapyard | Core integrity fell below 50% 2268 | -11/Scrapyard | Entered Materials 2292 | -10/Materials | Build established: Mutant 2434 | -10/Materials | Discovered new exit (range 16) 2464 | -10/Materials | Core integrity fell below 20% 2466 | -10/Materials | Destroyed by Lesser Abomination with Light Assault Rifle Last Messages --------------- 02429_ Power failure, Ion Engine shutdown. 02429_ Overheating: Core damaged (-27). 02430_ Overheating: Lgt. Treads damaged (-53). 02430_ Acquired 23 matter. 02431_ Overheating: Sensor Array damaged (-13). 02434_ EXIT=FOUND (Blocked) 02441_ Lesser Abomination absorbs Wheel. 02444_ Sensor Array destroyed. 02445_ Lesser Abomination destroyed. 02445_ System corrupted: Lgt. Cannon targeting data glitched. 02447_ Door malfunctions. 02448_ Destroyed Sml. Battery. 02449_ Lesser Abomination absorbs Med. Storage Unit. 02451_ Lesser Abomination knocked back. 02453_ Lesser Abomination spits out Sml. Battery. 02453_ Lesser Abomination absorbs Lrg. Battery. 02454_ JSMAVAYD3#I=